bitfinex/quotes_ETHUSD_20210401
["timestamp","ask_amount","ask_price","bid_price","bid_amount"]
[1617290231113,0.39,1938.0,1937.8,0.1614325]
[1617290231523,2.97641608,1938.2,1937.8,0.1614325]
[1617290231524,18.5825,1937.9,1937.8,0.1614325]
[1617290231719,21.43251608,1937.9,1937.1,14.1535]
[1617290231920,0.39,1937.5,1937.1,14.1535]
[1617290232217,6.9946,1937.5,1937.1,14.1535]
[1617290232415,10.56871215,1937.5,1937.1,14.1535]
[1617290232717,10.96871215,1937.5,1936.8,0.09406894]
[1617290232916,10.96871215,1937.5,1936.8,0.62406894]
[1617290233117,0.244,1937.4,1936.9,7.74601]
[1617290233317,0.244,1937.4,1936.9,8.14601]
[1617290235939,1.7641,1937.5,1936.9,8.14601]
[1617290236141,1.3741,1937.5,1936.9,8.14601]
[1617290236342,0.67,1937.6,1936.9,8.14601]
[1617290236539,0.67,1937.6,1937.0,0.09406894]
[1617290236540,1.0951,1937.4,1937.0,0.09406894]
[1617290236766,0.67,1937.6,1936.9,8.14601]
[1617290236944,0.67,1937.6,1937.0,0.09406894]
[1617290237341,0.67,1937.6,1937.2,7.74505]
[1617290238364,0.67,1937.6,1937.1,0.14]
[1617290239769,1.9448,1937.6,1937.1,0.14]
[1617290239969,0.67,1937.6,1937.1,0.14]
[1617290240169,0.67,1937.6,1937.1,7.88545]
[1617290240588,4.31798328,1937.6,1937.1,7.88545]
[1617290240988,0.4,1937.4,1937.1,7.88545]
[1617290241191,0.4,1937.4,1937.1,0.14]
[1617290241391,1.2229,1937.6,1937.1,0.14]
[1617290241592,4.05798328,1937.6,1937.1,0.14]
[1617290241993,6.18999575,1937.6,1937.1,0.14]
[1617290242197,7.54759575,1937.6,1937.1,0.14]
[1617290242397,4.03798328,1937.4,1936.8,26.76377312]
[1617290242596,4.03798328,1937.4,1936.8,26.37377312]
[1617290242597,4.03798328,1937.2,1936.8,26.37377312]
[1617290242798,0.39,1937.2,1936.8,11.72707312]
[1617290243313,0.39,1937.2,1936.8,0.13817312]
[1617290243518,2.12877913,1937.1,1936.8,0.13817312]
[1617290243715,2.52877913,1937.1,1936.7,0.14]
[1617290243914,6.17676241,1937.1,1936.6,10.32859]
[1617290244114,3.73627913,1937.1,1936.6,10.32859]
[1617290244516,1.6075,1937.1,1936.6,10.32859]
[1617290245114,0.4,1937.1,1936.6,10.32859]
[1617290245615,1.1971,1937.2,1936.6,10.32859]
[1617290245858,1.6071,1937.2,1936.6,10.32859]
[1617290246264,1.6071,1937.2,1936.6,10.42265894]
[1617290246559,1.6071,1937.2,1936.6,13.74265894]
[1617290247561,0.28,1937.3,1936.7,0.38]
[1617290247761,1.2436,1937.2,1936.8,14.6]
[1617290247963,1.2832,1937.4,1936.8,14.6]
[1617290248163,1.2832,1937.4,1937.2,0.39]
[1617290248364,0.92891498,1937.9,1937.3,3.65013982]
[1617290248573,1.041,1937.9,1937.4,0.694]
[1617290248771,0.4,1938.2,1937.4,8.43794]
[1617290248970,0.4,1938.2,1937.6,0.343]
[1617290248971,1.418,1938.2,1937.6,0.343]
[1617290249168,1.418,1938.2,1937.6,6.3906]
[1617290249772,0.4,1938.2,1937.6,6.3906]
[1617290250069,4.97534112,1938.2,1937.6,6.3906]
[1617290250281,4.97534112,1938.2,1937.8,7.74226]
[1617290250282,1.6773,1938.2,1937.8,7.74226]
[1617290250469,0.4,1938.2,1937.8,7.74226]
[1617290251099,3.69780404,1938.2,1937.8,7.74226]
[1617290251502,4.84340404,1938.2,1937.8,7.74226]
[1617290251699,1.5456,1938.2,1937.8,7.74226]
[1617290251905,0.4,1938.2,1937.8,7.74226]
[1617290252101,1.4504,1938.2,1937.8,7.74226]
[1617290252303,1.4397,1938.2,1937.8,7.74226]
[1617290252501,1.7971,1938.2,1937.8,7.74226]
[1617290252703,1.0213,1938.1,1937.8,7.74226]
[1617290252906,1.1819,1938.2,1937.9,3.14511564]
[1617290253108,14.0,1938.3,1937.9,3.14511564]
[1617290253313,14.0,1938.3,1937.8,8.42226]
[1617290253314,14.0,1938.3,1938.1,10.31804956]
[1617290253609,14.0,1938.3,1938.1,7.1718]
[1617290253610,8.83972,1938.3,1938.1,7.1718]
[1617290253821,3.67944,1938.3,1938.1,7.1718]
[1617290254124,0.39,1938.7,1938.2,10.99406894]
[1617290254323,4.864678,1938.8,1938.2,10.99406894]
[1617290254622,1.51,1938.8,1938.4,3.87005]
[1617290254924,1.51,1938.8,1938.4,4.63645]
[1617290255924,1.51,1938.8,1938.4,12.37641]
[1617290256123,1.51,1938.8,1938.5,3.87005]
[1617290256542,1.13,1938.8,1938.5,3.87005]
[1617290256740,1.13,1938.8,1938.5,5.13245]
[1617290258154,1.08,1938.8,1938.5,5.13245]
[1617290258348,0.94,1938.8,1938.5,5.13245]
[1617290258984,0.94,1938.8,1938.5,12.72655]
[1617290259184,0.94,1938.8,1938.5,17.55405]
[1617290260387,0.94,1938.8,1938.5,13.684]
[1617290260587,0.94,1938.8,1938.5,9.884]
[1617290262091,0.94,1938.8,1938.5,8.6216]
[1617290263893,0.94,1938.8,1938.6,0.4]
[1617290264712,0.94,1938.8,1938.5,24.37826]
[1617290265217,0.4,1938.6,1938.5,9.5894]
[1617290265613,0.94,1938.8,1938.5,9.5894]
[1617290266012,4.114678,1938.7,1938.5,9.5894]
[1617290266420,0.39,1938.6,1938.5,9.5894]
[1617290266716,0.39,1938.6,1938.5,8.5619]
[1617290266949,3.734678,1938.7,1938.5,8.5619]
[1617290267149,0.39,1938.7,1938.5,8.5619]
[1617290267448,0.94,1938.8,1938.5,8.5619]
[1617290267752,0.94,1938.8,1938.5,8.9719]
[1617290267949,0.94,1938.8,1938.5,8.5619]
[1617290268451,0.94,1938.8,1938.5,9.6226]
[1617290268659,0.94,1938.8,1938.5,12.3826]
[1617290269248,0.94,1938.8,1938.5,20.20188]
[1617290270278,0.79,1938.8,1938.5,37.94104]
[1617290270476,0.79,1938.8,1938.6,4.114678]
[1617290270777,0.79,1938.8,1938.7,12.24]
[1617290271378,0.79,1938.8,1938.7,17.08]
[1617290272193,0.79,1938.8,1938.7,16.69]
[1617290273196,0.79,1938.8,1938.7,4.84]
[1617290273394,0.79,1938.8,1938.5,17.58694]
[1617290273629,1.18,1938.8,1938.4,0.28]
[1617290273829,0.79,1938.8,1938.4,0.28]
[1617290274031,0.79,1938.8,1938.4,5.29]
[1617290274228,0.79,1938.8,1938.4,0.28]
[1617290274428,0.79,1938.8,1938.4,8.01932]
[1617290274845,0.79,1938.8,1938.4,12.899554]
[1617290275044,0.79,1938.8,1938.4,11.85932]
[1617290275248,0.79,1938.8,1938.5,11.2339]
[1617290275446,0.79,1938.8,1938.5,19.5622]
[1617290275744,0.79,1938.8,1938.5,15.5622]
[1617290275945,0.79,1938.8,1938.5,25.5622]
[1617290276147,0.79,1938.8,1938.6,3.734678]
[1617290276350,0.79,1938.8,1938.6,8.114678]
[1617290277647,0.79,1938.8,1938.6,25.853418]
[1617290278153,0.79,1938.8,1938.7,14.2]
[1617290278349,0.79,1938.8,1938.7,19.04]
[1617290278751,0.79,1938.8,1938.7,18.64]
[1617290279048,0.79,1938.8,1938.7,26.37874]
[1617290282596,0.79,1938.8,1938.7,26.78874]
[1617290283199,0.79,1938.8,1938.7,26.37874]
[1617290285425,2.39897045,1939.3,1938.7,26.76874]
[1617290285628,2.39897045,1939.3,1939.2,23.31]
[1617290285829,2.39897045,1939.3,1939.2,43.7187]
[1617290286132,2.39897045,1939.3,1939.2,35.2920903]
[1617290286624,2.39897045,1939.3,1939.2,34.8820903]
[1617290287027,2.34897045,1939.3,1939.2,35.2720903]
[1617290287229,2.34897045,1939.3,1939.2,53.0088403]
[1617290287428,0.35,1939.4,1939.2,53.0088403]
[1617290287739,0.35,1939.4,1939.3,23.47022302]
[1617290287949,0.35,1939.4,1939.3,30.33022302]
[1617290288550,0.35,1939.4,1939.3,38.06501302]
[1617290289052,0.35,1939.4,1939.3,39.54738543]
[1617290289261,1.0,1939.8,1939.3,38.06501302]
[1617290289459,1.0,1939.8,1939.6,10.0]
[1617290289659,1.0,1939.8,1939.7,31.0451596]
[1617290290159,1.0,1939.8,1939.7,32.93811528]
[1617290290355,1.0,1939.9,1939.8,24.25]
[1617290290591,1.0,1939.9,1939.8,39.53]
[1617290290798,1.0,1939.9,1939.8,47.26171]
[1617290291295,0.052787,1940.0,1939.8,47.9901269]
[1617290291502,0.052787,1940.0,1939.9,28.96819298]
[1617290291796,3.1022822,1940.8,1939.9,28.96819298]
[1617290291797,1.2,1940.9,1940.0,47.18486357]
[1617290291998,0.14,1940.6,1940.4,10.0603]
[1617290292205,7.73254,1941.0,1940.5,4.70563547]
[1617290292395,0.41,1940.7,1940.5,4.70563547]
[1617290292594,0.14,1940.9,1940.5,4.70563547]
[1617290292901,7.73254,1941.0,1940.6,11.15]
[1617290292902,0.14,1941.0,1940.6,11.15]
[1617290293096,18.57417492,1941.3,1940.6,11.15]
[1617290293097,1.4375667,1941.1,1940.6,11.15]
[1617290293298,0.4,1941.1,1940.5,11.4173]
[1617290293497,0.4,1941.1,1940.5,14.85136894]
[1617290294500,0.4,1941.1,1940.6,0.39]
[1617290294501,1.02591841,1941.1,1940.6,0.39]
[1617290294702,11.3713263,1941.2,1940.5,14.7573]
[1617290294898,8.13194,1941.2,1940.6,3.66202944]
[1617290295201,0.00717591,1941.2,1940.7,0.715]
[1617290295400,0.00717591,1941.2,1940.8,3.83747052]
[1617290295725,0.34717591,1941.2,1940.8,8.38374108]
[1617290295924,0.53,1941.3,1940.8,8.38374108]
[1617290296126,0.14,1941.3,1940.8,8.67774108]
[1617290296821,0.14,1941.3,1940.8,9.07774108]
[1617290297023,7.87053,1941.3,1940.8,9.07774108]
[1617290297222,8.27053,1941.3,1940.8,8.67774108]
[1617290297424,7.87053,1941.3,1941.1,0.39]
[1617290297624,7.73053,1941.3,1941.0,3.203]
[1617290298024,7.73053,1941.3,1941.0,13.203]
[1617290298350,7.73053,1941.3,1941.0,3.203]
[1617290299052,8.09099761,1941.9,1941.0,3.203]
[1617290299053,9.44373956,1941.8,1941.1,10.0]
[1617290299255,9.44373956,1941.8,1941.2,6.6693]
[1617290299256,4.43373956,1941.8,1941.2,6.6693]
[1617290299560,3.28925418,1941.9,1941.3,3.75609838]
[1617290299754,3.53925418,1941.9,1941.4,0.6434169]
[1617290300061,3.14925418,1941.9,1941.4,6.98538584]
[1617290300248,3.14925418,1941.9,1941.4,6.60538584]
[1617290300449,2.84925418,1941.9,1941.4,10.10289013]
[1617290300652,3.66202944,1941.8,1941.4,0.98540429]
[1617290300852,2.84925418,1941.9,1941.4,0.98540429]
[1617290301075,0.38,1941.8,1941.3,0.30270215]
[1617290301275,0.38,1941.8,1941.3,0.70270215]
[1617290301472,2.84925418,1941.9,1941.3,0.70270215]
[1617290301684,3.24925418,1941.9,1941.3,0.70270215]
[1617290302275,6.91128362,1941.9,1941.3,3.40270215]
[1617290302578,16.05,1941.4,1941.2,1.1356]
[1617290302876,3.66202944,1941.3,1940.6,15.4152169]
[1617290303078,0.39,1940.8,1940.6,15.4152169]
[1617290303705,0.39,1940.8,1940.6,0.3284169]
[1617290304701,1.2,1941.1,1940.6,0.3284169]
[1617290304907,4.86202944,1941.1,1940.6,0.3284169]
[1617290305106,1.2,1941.1,1940.6,0.3284169]
[1617290305296,1.6,1941.1,1940.6,0.3284169]
[1617290305496,0.4,1941.1,1940.6,0.3284169]
[1617290305697,0.40615131,1941.1,1940.6,0.42248584]
[1617290305901,0.38,1940.8,1940.6,1.88629301]
[1617290306101,0.00615131,1941.1,1940.7,0.39]
[1617290306325,0.00615131,1941.1,1940.7,0.76406894]
[1617290306924,0.39615131,1941.1,1940.7,0.37406894]
[1617290307322,0.00615131,1941.1,1940.7,3.05406894]
[1617290307528,0.00615131,1941.1,1940.7,2.72406894]
[1617290307724,6.21615131,1941.1,1940.7,2.68]
[1617290307924,0.4,1940.8,1940.7,2.68]
[1617290308123,0.4,1940.8,1940.5,0.3284169]
[1617290308521,0.4,1940.8,1940.5,0.37248584]
[1617290308725,0.00615131,1941.1,1940.6,1.47300845]
[1617290308947,0.00615131,1941.1,1940.8,0.39]
[1617290309744,0.41615131,1941.1,1940.7,9.19885748]
[1617290309944,0.41615131,1941.1,1940.7,7.72984]
[1617290310344,0.41615131,1941.1,1940.6,0.65948584]
[1617290310545,0.41615131,1941.1,1940.9,0.20190912]
[1617290310750,0.41615131,1941.1,1940.6,0.65948584]
[1617290311254,0.39,1940.8,1940.6,0.6154169]
[1617290311480,0.00615131,1941.1,1940.6,0.6154169]
[1617290311681,0.38,1940.9,1940.6,0.6154169]
[1617290313080,0.39,1940.7,1940.6,6.8154169]
[1617290313281,0.39,1940.7,1940.6,6.5284169]
[1617290313481,0.00615131,1941.1,1940.6,6.5284169]
[1617290313783,0.38,1941.0,1940.6,6.5284169]
[1617290314098,0.4,1940.9,1940.6,6.4784169]
[1617290315799,0.41,1940.7,1940.6,6.4784169]
[1617290315997,0.00615131,1941.1,1940.6,12.9784169]
[1617290316304,0.00609474,1940.9,1940.7,3.66202944]
[1617290316598,0.00609474,1940.9,1940.6,17.47573719]
[1617290316821,0.39,1940.8,1940.6,16.0184169]
[1617290317021,0.00609474,1940.9,1940.6,16.0184169]
[1617290317822,0.39609474,1940.9,1940.6,16.0184169]
[1617290318826,0.00609474,1940.9,1940.7,3.66202944]
[1617290319033,0.00609474,1940.9,1940.8,24.14]
[1617290319225,0.00609474,1940.9,1940.8,34.8392]
[1617290319451,0.00609474,1940.9,1940.8,34.4492]
[1617290319854,0.00609474,1940.9,1940.8,10.6992]
[1617290320354,0.41609474,1940.9,1940.8,6.5392]
[1617290320652,0.41609474,1940.9,1940.7,0.8989]
[1617290320960,0.00609474,1940.9,1940.8,23.9972]
[1617290321258,0.00609474,1940.9,1940.8,21.3672]
[1617290321979,0.00609474,1940.9,1940.8,37.1672]
[1617290321980,4.74e-06,1940.9,1940.8,37.1672]
[1617290322180,4.74e-06,1940.9,1940.8,38.61114551]
[1617290322385,4.74e-06,1940.9,1940.8,52.99069123]
[1617290322578,4.74e-06,1940.9,1940.8,47.19069123]
[1617290323194,4.74e-06,1940.9,1940.8,37.31113676]
[1617290323680,4.74e-06,1940.9,1940.8,35.86719125]
[1617290323880,4.74e-06,1940.9,1940.8,47.56955612]
[1617290324280,4.74e-06,1940.9,1940.8,45.74674572]
[1617290324712,4.74e-06,1940.9,1940.8,35.74674572]
[1617290324906,4.74e-06,1940.9,1940.8,40.74674572]
[1617290325102,4.74e-06,1940.9,1940.8,50.74674572]
[1617290326304,4.74e-06,1940.9,1940.8,46.93674572]
[1617290326503,4.74e-06,1940.9,1940.8,54.93674572]
[1617290326704,4.74e-06,1940.9,1940.8,66.33287213]
[1617290326907,3.23925418,1941.9,1941.0,8.2]
[1617290327109,0.39,1941.8,1941.2,3.69691132]
[1617290327330,2.84925418,1941.9,1941.4,3.69691132]
[1617290327532,2.84925418,1941.9,1941.6,0.39]
[1617290327731,2.84925418,1941.9,1941.7,9.56344238]
[1617290328742,2.84925418,1941.9,1941.7,9.2106]
[1617290329330,2.84925418,1941.9,1941.7,12.86344238]
[1617290330463,2.84925418,1941.9,1941.8,10.72517522]
[1617290330655,2.84925418,1941.9,1941.8,14.30517522]
[1617290332788,2.84925418,1941.9,1941.8,28.01007522]
[1617290333282,2.84925418,1941.9,1941.8,31.61007522]
[1617290333784,2.84925418,1941.9,1941.8,21.61007522]
[1617290333984,2.84925418,1941.9,1941.8,18.39595522]
[1617290334187,2.84925418,1941.9,1941.8,0.17517522]
[1617290334702,2.84925418,1941.9,1941.6,0.2784169]
[1617290335125,3.22925418,1941.9,1941.4,0.04406894]
[1617290335334,3.22925418,1941.9,1941.4,0.32406894]
[1617290335532,2.84925418,1941.9,1941.6,1.96208268]
[1617290335930,2.84925418,1941.9,1941.6,0.41]
[1617290336129,2.84925418,1941.9,1941.6,0.6884169]
[1617290336428,2.84925418,1941.9,1941.8,32.8448]
[1617290336727,2.84925418,1941.9,1941.8,62.12515447]
[1617290337430,5.418e-05,1942.0,1941.9,36.82955447]
[1617290337630,0.09161083,1942.1,1941.9,36.82955447]
[1617290337631,6.501e-05,1942.1,1942.0,26.95]
[1617290337835,6.501e-05,1942.1,1942.0,37.21955447]
[1617290338029,6.501e-05,1942.1,1942.0,54.51955447]
[1617290338227,6.501e-05,1942.1,1942.0,44.51955447]
[1617290338429,6.501e-05,1942.1,1942.0,44.79797137]
[1617290338627,6.501e-05,1942.1,1942.0,52.52217137]
[1617290339228,6.501e-05,1942.1,1942.0,44.79797137]
[1617290339431,6.501e-05,1942.1,1942.0,34.9084169]
[1617290339630,6.501e-05,1942.1,1942.0,34.5284169]
[1617290340458,6.501e-05,1942.1,1942.0,34.7195083]
[1617290340661,6.501e-05,1942.1,1942.0,31.68754054]
[1617290340857,6.501e-05,1942.1,1942.0,42.69694054]
[1617290341055,6.501e-05,1942.1,1942.0,45.01864054]
[1617290341256,6.501e-05,1942.1,1942.0,35.01864054]
[1617290341758,6.501e-05,1942.1,1942.0,35.40864054]
[1617290341959,6.501e-05,1942.1,1942.0,45.28819501]
[1617290342365,6.501e-05,1942.1,1942.0,47.34812621]
[1617290343023,6.501e-05,1942.1,1942.0,57.34812621]
[1617290343713,6.501e-05,1942.1,1942.0,68.85338533]
[1617290343912,6.501e-05,1942.1,1942.0,57.34812621]
[1617290344913,6.501e-05,1942.1,1942.0,58.54812621]
[1617290346221,6.501e-05,1942.1,1942.0,59.80634827]
[1617290346614,6.501e-05,1942.1,1942.0,57.34812621]
[1617290348272,0.42,1942.6,1942.0,57.34812621]
[1617290348273,1.0,1942.9,1942.2,9.87955447]
[1617290348470,0.14,1942.6,1942.3,0.04406894]
[1617290348700,1.55,1942.9,1942.4,0.39]
[1617290348900,1.55,1942.9,1942.4,0.43406894]
[1617290349099,0.4,1942.8,1942.3,0.32248584]
[1617290349499,0.4,1942.8,1942.3,0.71248584]
[1617290350102,0.4,1942.8,1942.3,8.43661584]
[1617290350304,0.4,1942.8,1942.4,3.86195]
[1617290350504,0.4,1942.8,1942.7,0.1178718]
[1617290350704,1.14,1942.9,1942.7,0.1178718]
[1617290351007,1.0,1942.9,1942.7,0.1178718]
[1617290351204,1.0,1942.9,1942.7,9.5686718]
[1617290351405,1.0,1942.9,1942.8,9.9]
[1617290351606,1.0,1942.9,1942.8,27.07591208]
[1617290351909,1.0,1942.9,1942.8,31.74796073]
[1617290351910,0.9,1942.9,1942.8,31.74796073]
[1617290352205,0.9,1942.9,1942.8,38.39160312]
[1617290352407,0.9,1942.9,1942.8,47.48241281]
[1617290352608,0.75,1942.9,1942.8,55.20466281]
[1617290352808,0.75,1942.9,1942.8,41.65466281]
[1617290353206,0.75,1942.9,1942.8,40.18103106]
[1617290353613,0.75,1942.9,1942.8,47.18103106]
[1617290353809,0.75,1942.9,1942.8,48.71245593]
[1617290354011,0.35,1943.2,1942.9,23.95]
[1617290354209,0.35,1943.2,1943.0,10.4]
[1617290354408,0.35,1943.2,1943.0,21.80633892]
[1617290354610,0.35,1943.2,1943.0,30.77670308]
[1617290354810,0.35,1943.2,1943.1,17.37077]
[1617290355008,0.35,1943.2,1943.1,23.5091869]
[1617290355209,0.35,1943.2,1943.1,32.22617305]
[1617290355412,0.02,1943.5,1943.2,22.35]
[1617290355612,0.02,1943.5,1943.4,17.56]
[1617290356009,0.02,1943.5,1943.4,22.4984169]
[1617290356316,0.02,1943.5,1943.4,5.3484169]
[1617290356509,0.02,1943.5,1943.4,9.4284169]
[1617290356809,0.02,1943.5,1943.4,9.3784169]
[1617290357008,0.02,1943.5,1943.4,0.2284169]
[1617290358421,0.0267589,1943.5,1943.4,0.2284169]
[1617290358729,0.0267589,1943.5,1943.4,10.0284169]
[1617290359428,0.0267589,1943.5,1943.4,19.2262169]
[1617290359830,0.0267589,1943.5,1943.4,22.3662169]
[1617290360229,0.0267589,1943.5,1943.4,1.5662169]
[1617290360631,0.3767589,1943.6,1943.4,0.14787715]
[1617290360932,2.1023194,1943.7,1943.3,14.14025]
[1617290361135,2.1023194,1943.7,1943.3,25.2804]
[1617290361358,2.1023194,1943.7,1943.3,15.2804]
[1617290361559,2.4923194,1943.7,1943.3,7.56025]
[1617290361857,2.4923194,1943.7,1943.3,4.14025]
[1617290362158,2.0423194,1943.7,1943.3,0.67]
[1617290362458,2.0423194,1943.7,1943.5,0.39]
[1617290362958,2.0423194,1943.7,1943.3,13.57036416]
[1617290363357,2.0423194,1943.7,1943.3,23.57036416]
[1617290363597,2.0423194,1943.7,1943.4,4.02610032]
[1617290363794,2.0423194,1943.7,1943.4,3.19]
[1617290365497,2.4323194,1943.7,1943.4,2.8]
[1617290365800,0.38,1943.5,1943.4,2.8]
[1617290366202,2.0423194,1943.7,1943.4,2.8]
[1617290366630,2.0423194,1943.7,1943.1,10.04406894]
[1617290366834,0.41,1943.6,1943.1,10.75506894]
[1617290367032,0.03233037,1943.6,1943.1,10.75506894]
[1617290367233,0.03233037,1943.6,1943.1,17.33116926]
[1617290367433,0.03233037,1943.6,1943.3,0.4]
[1617290367634,0.41233037,1943.6,1943.1,13.28506894]
[1617290367836,0.4,1943.4,1943.1,12.98406894]
[1617290368034,0.4,1943.4,1943.1,10.0]
[1617290368234,0.03233037,1943.6,1943.1,13.63610032]
[1617290368535,0.03233037,1943.6,1943.2,0.04406894]
[1617290368736,0.4,1943.3,1943.1,8.9644331]
[1617290368940,0.4,1943.3,1943.1,0.04406894]
[1617290369236,0.4,1943.0,1942.9,23.14966416]
[1617290369439,0.14,1943.4,1942.9,14.2293]
[1617290369837,7.72355,1943.1,1942.9,14.2293]
[1617290370036,7.72355,1943.1,1942.7,15.5386]
[1617290370037,0.38,1943.0,1942.7,15.5386]
[1617290370237,10.43806,1943.4,1942.8,3.63610032]
[1617290370537,0.03233037,1943.0,1942.8,7.40016926]
[1617290370735,0.03233037,1943.0,1942.8,16.32053342]
[1617290370936,0.03233037,1943.0,1942.9,41.57125]
[1617290371237,0.03233037,1943.0,1942.9,30.99161416]
[1617290371436,0.03233037,1943.0,1942.9,11.66125]
[1617290371638,0.03233037,1943.0,1942.9,12.86036416]
[1617290371856,0.03233037,1943.0,1942.9,3.94]
[1617290372060,0.03233037,1943.0,1942.8,2.0592179]
[1617290372256,0.03233037,1943.0,1942.8,5.69531822]
[1617290372558,0.41,1942.9,1942.7,19.39964]
[1617290372757,0.41,1942.9,1942.7,22.29964]
[1617290372956,0.41,1942.9,1942.7,18.4386]
[1617290373356,0.41,1942.9,1942.7,15.5386]
[1617290373858,0.03233037,1943.0,1942.8,0.11854992]
[1617290374786,0.39,1942.9,1942.8,0.11854992]
[1617290375283,0.03233037,1943.0,1942.8,0.11854992]
[1617290376388,8.12333,1943.1,1943.0,49.96766963]
[1617290376592,7.72333,1943.1,1943.0,49.96766963]
[1617290376788,10.29759,1943.3,1943.0,57.44766963]
[1617290376988,16.48216118,1943.6,1943.0,66.36803379]
[1617290377209,0.14,1943.5,1943.0,66.36803379]
[1617290377713,0.14,1943.5,1943.0,66.75803379]
[1617290378112,0.14,1943.5,1943.0,76.75803379]
[1617290378311,0.14,1943.5,1943.1,8.92036416]
[1617290378508,0.14,1943.5,1943.1,11.5]
[1617290378711,0.14,1943.5,1943.1,20.42036416]
[1617290379017,11.49821032,1943.5,1943.4,0.18585246]
[1617290379223,11.35821032,1943.5,1943.4,0.18585246]
[1617290379512,11.73821032,1943.5,1943.4,0.18585246]
[1617290381135,11.73821032,1943.5,1943.0,58.88803379]
[1617290381136,0.39,1943.2,1943.0,58.88803379]
[1617290381339,0.39,1943.2,1943.0,58.84766963]
[1617290381540,8.113,1943.2,1943.0,67.76803379]
[1617290382236,8.113,1943.2,1943.0,58.88803379]
[1617290382454,3.63610032,1943.1,1943.0,58.88803379]
[1617290382670,30.09610032,1943.1,1943.0,43.47928379]
[1617290382861,31.29610032,1943.1,1943.0,43.35578379]
[1617290383059,31.29610032,1943.1,1943.0,42.44687085]
[1617290383263,27.29610032,1943.1,1943.0,39.24687085]
[1617290383557,27.29610032,1943.1,1943.0,30.19687085]
[1617290383862,27.29610032,1943.1,1941.9,0.10773226]
[1617290383863,7.588,1942.3,1941.9,0.10773226]
[1617290384071,0.39,1942.0,1941.9,0.10773226]
[1617290384566,0.6166,1942.1,1941.9,0.10773226]
[1617290385089,0.6166,1942.1,1942.0,0.39]
[1617290385486,0.41373383,1942.5,1942.0,6.85]
[1617290385687,0.41373383,1942.5,1941.9,0.10773226]
[1617290385688,3.9628087,1942.4,1941.9,0.1518012]
[1617290385887,7.7276,1942.3,1941.7,0.04406894]
[1617290386088,4.2128087,1942.2,1941.6,0.71406894]
[1617290386289,0.39,1942.2,1941.6,0.71406894]
[1617290386688,0.4,1942.0,1941.6,0.04406894]
[1617290386886,4.2228087,1942.0,1941.5,0.04406894]
[1617290387087,0.4,1942.0,1941.5,0.04406894]
[1617290387488,5.1628087,1942.2,1941.5,0.74806894]
[1617290387720,7.72844,1942.0,1941.5,0.33806894]
[1617290387917,7.72844,1942.0,1941.5,0.73806894]
[1617290388330,0.39,1942.1,1941.5,0.73806894]
[1617290388718,0.39,1942.1,1941.8,0.41]
[1617290388918,0.46373383,1942.5,1942.0,0.52967209]
[1617290389239,0.41373383,1942.5,1942.0,0.90067209]
[1617290389416,0.41,1942.5,1942.1,14.8]
[1617290389619,10.4353901,1942.6,1942.1,18.5]
[1617290389819,8.44764285,1942.5,1941.7,2.10438034]
[1617290390017,0.54,1942.4,1941.8,0.39]
[1617290390539,0.4,1942.3,1941.7,2.38438034]
[1617290390736,3.80641158,1942.2,1941.7,0.45406894]
[1617290390938,0.41,1942.1,1941.6,0.44406894]
[1617290391638,0.53,1942.2,1941.6,0.44406894]
[1617290392037,0.53,1942.2,1941.6,0.74506894]
[1617290392639,0.53,1942.2,1941.6,0.44406894]
[1617290393072,0.53,1942.2,1941.6,0.4]
[1617290393668,1.73,1942.2,1941.6,0.4]
[1617290393868,1.73,1942.2,1941.5,0.04406894]
[1617290393869,0.39,1941.9,1941.5,0.04406894]
[1617290394076,3.80641158,1941.8,1941.2,0.45406894]
[1617290394282,11.70781158,1941.8,1941.4,0.39]
[1617290394470,7.9014,1941.8,1941.3,0.38]
[1617290394674,0.4,1941.6,1941.1,10.37977754]
[1617290395372,0.53,1941.7,1941.1,10.37977754]
[1617290395615,0.53,1941.7,1941.2,0.4]
[1617290395616,0.14,1941.7,1941.2,0.4]
[1617290395908,0.4,1941.9,1941.2,0.701]
[1617290396111,0.14,1942.1,1941.5,0.399]
[1617290396310,0.53,1942.1,1941.5,0.399]
[1617290397309,0.62406894,1942.1,1941.4,2.4506594]
[1617290397511,0.53,1942.1,1941.4,2.7406594]
[1617290397908,0.53,1942.1,1941.4,10.4684294]
[1617290398316,0.58787715,1942.5,1941.7,4.27305]
[1617290398518,0.58787715,1942.5,1942.0,0.315]
[1617290398917,0.58787715,1942.5,1942.4,5.35374863]
[1617290399613,0.38,1942.5,1942.4,5.35374863]
[1617290399916,0.38,1942.5,1942.4,0.10374863]
[1617290400113,4.4441655,1942.5,1942.4,0.10374863]
[1617290400313,0.96886724,1942.5,1942.4,0.10374863]
[1617290400512,0.38,1942.5,1942.4,0.10374863]
[1617290400939,0.94411513,1942.5,1942.4,0.10374863]
[1617290401141,11.24756513,1942.5,1942.4,0.10374863]
[1617290401342,0.94411513,1942.5,1942.4,0.10374863]
[1617290401541,0.38,1942.5,1942.4,0.10374863]
[1617290402145,21.62287495,1942.5,1942.4,0.10374863]
[1617290402349,4.67406894,1942.4,1941.4,12.0323]
[1617290402546,0.4,1941.8,1941.3,7.0]
[1617290402847,9.7807,1941.8,1941.3,7.0]
[1617290403044,9.7807,1941.8,1941.4,0.4]
[1617290403370,9.6407,1941.8,1941.4,0.4]
[1617290403868,9.6407,1941.8,1941.7,0.1396158]
[1617290404469,10.0307,1941.8,1941.7,0.1396158]
[1617290404969,9.6407,1941.8,1941.7,0.1396158]
[1617290405172,10.0507,1941.8,1941.7,0.1396158]
[1617290405672,11.2507,1941.8,1941.1,1.0]
[1617290405881,0.39,1941.3,1941.1,1.0]
[1617290406099,10.8270552,1941.2,1941.1,1.0]
[1617290406303,11.2270552,1941.2,1941.1,1.0]